fUSD/lending_fUSD_20260130
["ID","MTS","AMOUNT","RATE_DAILY","PERIOD"]
[404085446,1769800233565,-500.0,0.00016919,2]
[404085447,1769800233574,-500.0,0.00016919,2]
[404085448,1769800233583,-500.0,0.00016919,2]
[404085449,1769800233594,-500.0,0.00016919,2]
[404085450,1769800233604,-500.0,0.00016919,2]
[404085451,1769800233614,-500.0,0.00016919,2]
[404085452,1769800233624,-500.0,0.00016919,2]
[404085453,1769800233634,-31147.40543643,0.0001692,2]
[404085454,1769800233644,-1000.0,0.00016921,2]
[404085455,1769800233654,-1000.0,0.00016921,2]
[404085456,1769800233664,-1000.0,0.00016921,2]
[404085457,1769800233675,-1000.0,0.00016921,2]
[404085458,1769800233685,-304.05633745,0.00016921,2]
[404085459,1769800233696,-500.0,0.00016921,2]
[404085460,1769800233889,-509.36195064,0.00016921,2]
[404085461,1769800233909,-1000.0,0.00016921,2]
[404085462,1769800233919,-500.0,0.00016921,2]
[404085463,1769800233929,-500.0,0.00016921,2]
[404085464,1769800233938,-1000.0,0.00016921,2]
[404085465,1769800233948,-500.0,0.00016921,2]
[404085466,1769800233958,-500.0,0.00016921,2]
[404085467,1769800233968,-377.26188408,0.00016921,2]
[404085468,1769800233977,-1000.0,0.00016921,2]
[404085469,1769800233987,-500.60369246,0.00016921,2]
[404085470,1769800233996,-1000.0,0.00016921,2]
[404085471,1769800234007,-1000.28855452,0.00016921,2]
[404085472,1769800234016,-1000.0,0.00016921,2]
[404085473,1769800234026,-500.0,0.00016921,2]
[404085474,1769800234036,-500.0,0.00016921,2]
[404085475,1769800234046,-528.13,0.00016921,2]
[404085476,1769800234056,-33719.43249705,0.00016979,2]
[404085477,1769800234075,-8027.97513753,0.00016979,2]
[404085479,1769800237817,-485.4300017,0.00016979,2]
[404085480,1769800237870,-307.57411452,0.00016979,2]
[404085481,1769800237978,-6000.89731925,0.00016979,2]
[404085482,1769800238085,-2320.18029496,0.00016979,2]
[404085483,1769800238097,-2224.17408572,0.00016979,2]
[404085548,1769800239981,-539.77995776,0.00016979,2]
[404085549,1769800239994,-296.0601961,0.00016979,2]
[404085550,1769800240007,-677.83074573,0.00016979,2]
[404085551,1769800240020,-4036.45981344,0.00016979,2]
[404085552,1769800240196,-8413.0,0.00016979,2]
[404085553,1769800240209,-947.05061157,0.00016979,2]
[404085554,1769800240220,-2477.89220815,0.00016984,2]
[404085555,1769800240231,-1680.0,0.00017002,2]
[404085556,1769800240241,-429.39178028,0.0001704,2]
[404085557,1769800240362,-1.7e-07,0.0001704,2]
[404085570,1769800242997,-1038.8679276,0.0001704,2]
[404085572,1769800243010,-483.78002541,0.0001704,2]
[404085575,1769800243021,-104.27873459,0.0001704,2]
[404085576,1769800243112,-58.72126541,0.0001704,2]
[404085577,1769800243123,-166.66,0.00017057,2]
[404085578,1769800243134,-578.20924308,0.00017082,2]
[404085579,1769800243144,-854.2589148,0.00017082,2]
[404085580,1769800243155,-1000.0,0.00017082,2]
[404085581,1769800243164,-1000.0,0.00017082,2]
[404085582,1769800243176,-1906.95456363,0.00017082,2]
[404085583,1769800243187,-663.66695711,0.00017082,2]
[404085584,1769800243314,-336.33304289,0.00017082,2]
[404085585,1769800243324,-1000.0,0.00017082,2]
[404085586,1769800243334,-1000.0,0.00017082,2]
[404085587,1769800243343,-500.0,0.00017082,2]
[404085588,1769800243353,-322.6107,0.00017082,2]
[404085589,1769800243362,-1000.0,0.00017082,2]
[404085590,1769800243371,-3000.0,0.00017082,2]
[404085591,1769800243381,-1000.0,0.00017082,2]
[404085592,1769800243390,-3000.0,0.00017082,2]
[404085593,1769800243400,-813.99380379,0.00017082,2]
[404085594,1769800243409,-1795.68539232,0.00017082,2]
[404085595,1769800243419,-3000.0,0.00017082,2]
[404085597,1769800243428,-2500.0,0.00017082,2]
[404085599,1769800243438,-174.61919141,0.00017082,2]
[404085601,1769800243449,-721.12765535,0.00017082,2]
[404085603,1769800243459,-151.0,0.00017082,2]
[404085605,1769800243468,-156.587,0.00017082,2]
[404085607,1769800243478,-162.380719,0.00017082,2]
[404085609,1769800243487,-157.32475157,0.00017082,2]
[404085611,1769800243497,-250.0,0.00017082,2]
[404085613,1769800243509,-1000.0,0.00017082,2]
[404085615,1769800243519,-209.40437684,0.00017082,2]
[404085617,1769800243528,-1000.0,0.00017082,2]
[404085619,1769800243538,-1000.0,0.00017082,2]
[404085621,1769800243548,-750.0,0.00017082,2]
[404085623,1769800243557,-500.0,0.00017082,2]
[404085625,1769800243567,-500.0,0.00017082,2]
[404085627,1769800243575,-500.0,0.00017082,2]
[404085629,1769800243585,-500.0,0.00017082,2]
[404085631,1769800243595,-500.0,0.00017082,2]
[404085633,1769800243604,-250.0,0.00017082,2]
[404085635,1769800243613,-1000.0,0.00017112,2]
[404085637,1769800243623,-2477.89220815,0.00017115,2]
[404085639,1769800243633,-217.15233878,0.00017137,2]
[404085641,1769800243642,-225.18697532,0.00017192,2]
[404085643,1769800243652,-528.13,0.00017195,2]
[404085645,1769800243663,-9975.39882653,0.00017209,2]
[404085647,1769800243673,-2477.89220815,0.00017246,2]
[404085649,1769800243682,-233.51889341,0.00017247,2]
[404085651,1769800243692,-250.0,0.00017284,2]
[404085653,1769800243703,-242.15909246,0.00017302,2]
[404085655,1769800243714,-1482.0,0.0001733,2]
[404085657,1769800243731,-251.11897888,0.00017357,2]
[404085659,1769800243742,-2477.89220815,0.00017376,2]
[404085661,1769800243752,-1000.0,0.00017383,2]
[404085663,1769800243765,-260.4103811,0.00017412,2]
[404085665,1769800243783,-1600.0,0.00017414,2]
[404085667,1769800243794,-289.0,0.00017423,2]
[404085669,1769800243804,-270.0455652,0.00017467,2]
[404085671,1769800243814,-528.13,0.00017468,2]
[404085673,1769800243824,-1500.0,0.00017468,2]
[404085675,1769800243834,-1003.29314635,0.00017468,2]
[404085677,1769800243845,-1006.51912668,0.00017468,2]
[404085679,1769800243855,-1500.0,0.00017468,2]
[404085681,1769800243865,-503.41872439,0.00017468,2]
[404085683,1769800243875,-1500.0,0.00017468,2]
[404085685,1769800243884,-505.10384072,0.00017468,2]
[404085687,1769800243894,-2477.89220815,0.00017507,2]
[404085689,1769800243904,-280.03725112,0.00017522,2]
[404085691,1769800243913,-158.82094085,0.00017523,2]
[404085694,1769800243924,-500.0,0.00017539,2]
[404085696,1769800243934,-500.0,0.00017539,2]
[404085697,1769800243947,-512.03353117,0.00017539,2]
[404085699,1769800243957,-290.39862941,0.00017577,2]
[404085702,1769800243967,-166.66,0.00017585,2]
[404085703,1769800243977,-357.88396985,0.00017591,2]
[404085706,1769800243992,-1118.5191485,0.00017614,2]
[404085707,1769800244002,-1108.18039017,0.00017614,2]
[404085710,1769800244012,-1042.37439995,0.00017614,2]
[404085711,1769800244023,-1131.89870133,0.00017614,2]
[404085713,1769800244033,-1128.09394355,0.00017614,2]
[404085715,1769800244047,-1134.17355599,0.00017614,2]
[404085717,1769800244057,-1108.77811409,0.00017614,2]
[404085719,1769800244068,-1129.60832036,0.00017614,2]
[404085722,1769800244079,-3270.71690967,0.0001762,2]
[404085724,1769800244089,-885.86649465,0.0001763,2]
[404085726,1769800244099,-181.08010149,0.0001763,2]
[404085727,1769800244109,-301.1433787,0.00017632,2]
[404085729,1769800244119,-2477.89220815,0.00017638,2]
[404085732,1769800244130,-1148.23252363,0.0001764,2]
[404085734,1769800244140,-1128.27352618,0.0001764,2]
[404085735,1769800244150,-1068.46237799,0.0001764,2]
[404085737,1769800244160,-1019.82875058,0.0001764,2]
[404085739,1769800244170,-1099.72864672,0.0001764,2]
[404085742,1769800244180,-1097.5023631,0.0001764,2]
[404085743,1769800244193,-1020.6332572,0.0001764,2]
[404085746,1769800244205,-1010.08861442,0.0001764,2]
[404085747,1769800244214,-1087.75717367,0.0001764,2]
[404085749,1769800244224,-1134.85918345,0.0001764,2]
[404085751,1769800244234,-1024.76595536,0.0001764,2]
[404085753,1769800244244,-1117.06687906,0.0001764,2]
[404085755,1769800244254,-1110.24883793,0.0001764,2]
[404085757,1769800244264,-1095.4600782,0.0001764,2]
[404085760,1769800244274,-1133.11804048,0.0001764,2]
[404085761,1769800244284,-1113.22692182,0.0001764,2]
[404085764,1769800244294,-1029.27296374,0.0001764,2]
[404085766,1769800244304,-1120.02580881,0.0001764,2]
[404085768,1769800244314,-1144.85815727,0.0001764,2]
[404085770,1769800244324,-1075.54135877,0.0001764,2]
[404085772,1769800244333,-1075.22594905,0.0001764,2]
[404085774,1769800244343,-1086.07785459,0.0001764,2]
[404085775,1769800244352,-1094.10875475,0.0001764,2]
[404085778,1769800244362,-1056.39357507,0.0001764,2]
[404085780,1769800244372,-1148.02982938,0.0001764,2]
[404085782,1769800244382,-1124.62723524,0.0001764,2]
[404085784,1769800244393,-1090.11968577,0.0001764,2]
[404085786,1769800244403,-1037.18746799,0.0001764,2]
[404085787,1769800244412,-1079.42209516,0.0001764,2]
[404085790,1769800244422,-1031.88702529,0.0001764,2]
[404085792,1769800244432,-1025.29467197,0.0001764,2]
[404085793,1769800244442,-1146.8908888,0.0001764,2]
[404085795,1769800244453,-1046.19911701,0.0001764,2]
[404085798,1769800244463,-914.58949328,0.0001764,2]
[404085800,1769800244473,-151.0,0.00017649,2]
[404085802,1769800244483,-500.0,0.00017652,2]
[404085803,1769800244492,-500.0,0.00017652,2]
[404085805,1769800244503,-1000.0,0.00017657,2]
[404085808,1769800244513,-3270.71690967,0.0001766,2]
[404085810,1769800244523,-250.0,0.00017699,2]
[404085812,1769800244535,-200.0,0.00017699,2]
[404085814,1769800244544,-500.0,0.00017699,2]
[404085816,1769800244554,-500.0,0.00017699,2]
[404085818,1769800244565,-500.0,0.00017699,2]
[404085820,1769800244575,-500.0,0.00017699,2]
[404085821,1769800244584,-150.0,0.00017699,2]
[404085823,1769800244593,-168.0,0.00017699,2]
[404085825,1769800244603,-3270.71690967,0.000177,2]
[404085827,1769800244614,-1000.0,0.00017709,2]
[404085829,1769800244623,-3270.71690967,0.0001774,2]
[404085831,1769800244632,-528.15,0.00017742,2]
[404085833,1769800244641,-168.0,0.00017748,2]
[404085836,1769800244651,-500.0,0.00017754,2]
[404085838,1769800244660,-500.0,0.00017754,2]
[404085840,1769800244670,-500.0,0.00017754,2]
[404085842,1769800244679,-500.0,0.00017754,2]
[404085844,1769800244689,-150.0,0.00017754,2]
[404085846,1769800244699,-3170.64289404,0.00017756,2]
[404085848,1769800244709,-269.41676874,0.00017759,2]
[404085850,1769800244718,-366.58828418,0.00017759,2]
[404085852,1769800244728,-500.0,0.00017759,2]
[404085854,1769800244738,-500.0,0.00017759,2]
[404085856,1769800244748,-622.01161303,0.00017759,2]
[404085858,1769800244757,-500.0,0.00017759,2]
[404085860,1769800244766,-536.88524316,0.00017759,2]
[404085862,1769800244776,-245.14783415,0.00017759,2]
[404085864,1769800244785,-300.0,0.00017759,2]
[404085866,1769800244795,-157.10926465,0.00017759,2]
[404085868,1769800244804,-375.4424887,0.0001776,2]
[404085870,1769800244813,-320340.3868743,0.0001776,2]
[404085872,1769800244822,-1087.81,0.0001776,2]
[404085874,1769800244830,-1087.81,0.0001776,2]
[404085876,1769800244839,-2000.94,0.0001776,2]
[404085878,1769800244849,-2477.89220815,0.00017769,2]
[404085880,1769800244858,-3270.71690967,0.0001778,2]
[404085882,1769800244868,-2122.642,0.00017786,2]
[404085884,1769800244878,-218.814,0.00017786,2]
[404085886,1769800244887,-168.0,0.00017804,2]
[404085888,1769800244896,-162.27706607,0.00017808,2]
[404085890,1769800244906,-500.0,0.00017809,2]
[404085892,1769800244915,-500.0,0.00017809,2]
[404085894,1769800244928,-500.0,0.00017809,2]
[404085896,1769800244937,-500.0,0.00017809,2]
[404085898,1769800244948,-200.0,0.00017809,2]
[404085901,1769800244958,-500.0,0.0001782,2]
[404085903,1769800244968,-500.0,0.0001782,2]
[404085905,1769800244978,-3270.71690967,0.0001782,2]
[404085907,1769800244988,-3170.64289403,0.00017828,2]
[404085915,1769800245059,-2509.89087052,0.00017838,2]
[404085917,1769800245069,-6623.64171764,0.00017838,2]
[404085920,1769800245078,-11684.88911526,0.00017838,2]
[404085922,1769800245088,-17479.89528911,0.00017838,2]
[404085924,1769800245097,-23650.9119,0.00017838,2]
[404085925,1769800245106,-200.0,0.00017856,2]
[404085927,1769800245115,-151.0,0.00017857,2]
[404085929,1769800245124,-3270.71690967,0.0001786,2]
[404085931,1769800245133,-772.81,0.00017863,2]
[404085933,1769800245142,-500.0,0.00017863,2]
[404085935,1769800245151,-500.0,0.00017863,2]
[404085937,1769800245160,-500.0,0.00017863,2]
[404085939,1769800245170,-500.0,0.00017863,2]
[404085941,1769800245179,-2191.0,0.00017891,2]
[404085943,1769800245188,-500.0,0.00017898,2]
[404085945,1769800245197,-172.15998328,0.00017898,2]
[404085947,1769800245206,-1000.0,0.000179,2]
[404085949,1769800245216,-420.265,0.000179,2]
[404085951,1769800245225,-33275.4141,0.000179,2]
[404085953,1769800245234,-10000.0,0.000179,2]
[404085955,1769800245243,-3270.71690967,0.000179,2]
[404085957,1769800245252,-3170.64289403,0.000179,2]
[404085959,1769800245261,-405.33319936,0.000179,2]
[404085961,1769800245270,-32528.67748355,0.000179,2]
[404085963,1769800245279,-2477.89220815,0.000179,2]
[404085965,1769800245288,-978.88922576,0.000179,2]
[404085967,1769800245297,-866.0,0.00017903,2]
[404085969,1769800245306,-500.0,0.00017918,2]
[404085971,1769800245315,-500.0,0.00017918,2]
[404085973,1769800245323,-1000.0,0.00017931,2]
[404085975,1769800245332,-500.0,0.00017947,2]
[404085977,1769800245341,-500.0,0.00017973,2]
[404085979,1769800245350,-500.0,0.00017973,2]
[404085981,1769800245359,-500.0,0.00017973,2]
[404085983,1769800245368,-269.36047624,0.00017973,2]
[404085985,1769800245376,-303.73051813,0.00017973,2]
[404085987,1769800245385,-237.74347916,0.00017973,2]
[404085989,1769800245394,-500.0,0.00017973,2]
[404085991,1769800245403,-500.0,0.00017973,2]
[404085993,1769800245413,-393.88604428,0.00017973,2]
[404085995,1769800245422,-500.0,0.00017973,2]
[404085997,1769800245432,-500.0,0.00017973,2]
[404085999,1769800245441,-500.0,0.00017973,2]
[404086001,1769800245450,-500.0,0.00017973,2]
[404086003,1769800245459,-501.71313812,0.00017973,2]
[404086005,1769800245467,-535.85460388,0.00017973,2]
[404086007,1769800245477,-500.0,0.00017973,2]
[404086009,1769800245486,-505.87219837,0.00017973,2]
[404086011,1769800245496,-500.0,0.00017973,2]
[404086013,1769800245507,-500.0,0.00017973,2]
[404086014,1769800245515,-500.0,0.00017973,2]
[404086016,1769800245525,-500.0,0.00017973,2]
[404086018,1769800245534,-500.0,0.00017973,2]
[404086020,1769800245546,-500.0,0.00017973,2]
[404086022,1769800245555,-500.0,0.00017973,2]
[404086024,1769800245564,-500.0,0.00017973,2]
[404086025,1769800245575,-500.0,0.00017973,2]
[404086026,1769800245584,-524.93995843,0.00017973,2]
[404086027,1769800245593,-500.0,0.00017973,2]
[404086028,1769800245602,-500.0,0.00017973,2]
[404086029,1769800245611,-500.0,0.00017973,2]
[404086030,1769800245620,-500.0,0.00017973,2]
[404086031,1769800245629,-500.0,0.00017973,2]
[404086032,1769800245638,-500.0,0.00017973,2]
[404086033,1769800245647,-500.0,0.00017973,2]
[404086034,1769800245657,-500.0,0.00017973,2]
[404086035,1769800245665,-500.0,0.00017973,2]
[404086037,1769800245676,-502.00704372,0.00017973,2]
[404086039,1769800245686,-500.0,0.00017973,2]
[404086041,1769800245695,-500.0,0.00017973,2]
[404086044,1769800245709,-500.0,0.00017973,2]
[404086046,1769800245718,-500.0,0.00017973,2]
[404086048,1769800245727,-500.0,0.00017973,2]
[404086051,1769800245736,-500.0,0.00017973,2]
[404086053,1769800245746,-501.3344838,0.00017973,2]
[404086055,1769800245755,-500.0,0.00017973,2]
[404086057,1769800245764,-500.0,0.00017973,2]
[404086059,1769800245773,-500.0,0.00017973,2]
[404086061,1769800245782,-500.78976485,0.00017973,2]
[404086063,1769800245792,-500.0,0.00017973,2]
[404086065,1769800245801,-500.0,0.00017973,2]
[404086067,1769800245810,-500.0,0.00017973,2]
[404086069,1769800245819,-563.6024582,0.00017973,2]
[404086071,1769800245829,-500.0,0.00017973,2]
[404086073,1769800245839,-460.7871689,0.00017973,2]
[404086075,1769800245848,-500.0,0.00017973,2]
[404086077,1769800245858,-500.0,0.00017973,2]
[404086080,1769800245867,-150.0,0.00017973,2]
[404086082,1769800245875,-408.13975277,0.0001799,2]
[404086084,1769800245885,-408.13975277,0.0001799,2]
[404086086,1769800245896,-408.13975277,0.0001799,2]
[404086087,1769800245905,-151.0,0.00017997,2]
[404086089,1769800245914,-201.378,0.00017999,2]
[404086091,1769800245924,-300.0,0.00017999,2]
[404086093,1769800245934,-300.0,0.00017999,2]
[404086095,1769800245943,-300.30492929,0.00017999,2]
[404086096,1769800245953,-298.44024694,0.00017999,2]
[404086098,1769800245963,-300.0,0.00017999,2]
[404086100,1769800245973,-300.0,0.00017999,2]
[404086102,1769800245982,-401.58774042,0.00017999,2]
[404086104,1769800245991,-2011.85999459,0.00017999,2]
[404086106,1769800245999,-300.0,0.00017999,2]
[404086108,1769800246009,-300.0,0.00017999,2]
[404086110,1769800246018,-13702.33140561,0.00017999,2]
[404086112,1769800246027,-302404.72433462,0.00018,2]
[404086119,1769800246142,-10750.78392191,0.00018,2]
[404086120,1769800246343,-13600.00000001,0.00018,2]
[404086121,1769800246354,-428.75727144,0.00018,2]
[404086132,1769800945051,500.0,0.00017,30]
[404086133,1769800945533,500.0,0.00017,30]
[404086134,1769800946077,500.0,0.00017,30]
[404086135,1769800946595,500.0,0.00017,30]
[404086136,1769800947095,500.0,0.00017,30]
[404086137,1769800947603,500.0,0.00017,30]
[404086138,1769800948146,500.0,0.00017,30]
[404086139,1769800948223,500.0,0.00017,30]
[404086140,1769800948280,500.0,0.00017,30]
[404086141,1769800948395,500.0,0.00017,30]
[404086142,1769800948553,500.0,0.00016,30]
[404086143,1769800948959,500.0,0.00016,30]
[404086144,1769800949037,609.45807874,0.00017,30]
[404086145,1769800949090,500.0,0.00016,30]
[404086146,1769800949200,500.0,0.00016,30]
[404086147,1769800949612,500.0,0.00016,30]
[404086148,1769800950110,500.0,0.00016,30]
[404086149,1769800950600,500.0,0.00016,30]
[404086150,1769800951109,500.0,0.00016,30]
[404086151,1769800952594,500.0,0.00017,30]
[404086152,1769800953091,503.72696539,0.00016,30]
[404086153,1769801235312,500.0,0.00017,30]
[404086154,1769801235820,513.1931918,0.00016,30]
[404086155,1769801243142,-166.66,0.00015749,2]
[404086156,1769801243164,-258.90864442,0.00015841,5]
[404086157,1769801243186,-177.88769556,0.00016041,2]
[404086158,1769801243208,-166.66,0.00016081,2]
[404086159,1769801243230,-5000.00494978,0.000162,5]
[404086160,1769801243251,-151.0,0.00016201,2]
[404086161,1769801243274,-151.0,0.00016201,2]
[404086162,1769801243298,-1200.0,0.00016272,2]
[404086163,1769801243321,-300.0,0.00016272,2]
[404086164,1769801243349,-4019.7514,0.00016273,2]
[404086165,1769801243372,-154.9,0.00016323,2]
[404086166,1769801243394,-299.99,0.00016372,4]
[404086167,1769801243417,-550.0,0.00016372,2]
[404086168,1769801243440,-500.0,0.00016373,2]
[404086169,1769801243460,-501.44324461,0.00016373,2]
[404086170,1769801243483,-170.2968468,0.00016373,2]
[404086171,1769801243509,-500.0,0.00016373,2]
[404086172,1769801243532,-177.64323639,0.00016373,2]
[404086173,1769801243554,-500.0,0.00016373,2]
[404086174,1769801243577,-225.37911043,0.00016373,2]
[404086175,1769801243601,-500.0,0.00016373,2]
[404086176,1769801243623,-500.0,0.00016373,2]
[404086177,1769801243648,-500.0,0.00016373,2]
[404086178,1769801243672,-160.32431704,0.00016373,2]
[404086179,1769801243696,-500.0,0.00016373,2]
[404086180,1769801243719,-150.99,0.00016373,2]
[404086181,1769801243743,-9999.99,0.00016373,2]
[404086182,1769801243766,-500.0,0.00016373,2]
[404086183,1769801243793,-500.0,0.00016373,2]
[404086184,1769801243821,-500.0,0.00016373,2]
[404086185,1769801243850,-160.21744138,0.00016373,2]
[404086186,1769801243889,-500.0,0.00016373,2]
[404086187,1769801243913,-503.15498018,0.00016373,2]
[404086188,1769801243938,-166.21493216,0.00016373,2]
[404086189,1769801243965,-239.55126374,0.00016373,2]
[404086190,1769801243990,-500.0,0.00016373,2]
[404086191,1769801244016,-169.60462217,0.00016373,2]
[404086192,1769801244040,-500.0,0.00016373,2]
[404086193,1769801244066,-500.0,0.00016373,2]
[404086194,1769801244092,-500.0,0.00016373,2]
[404086195,1769801244121,-500.0,0.00016373,2]
[404086196,1769801244145,-500.0,0.00016373,2]
[404086197,1769801244170,-500.0,0.00016373,2]
[404086198,1769801244196,-500.0,0.00016373,2]
[404086199,1769801244222,-500.0,0.00016373,2]
[404086200,1769801244245,-500.0,0.00016373,2]
[404086201,1769801244268,-500.0,0.00016373,2]
[404086202,1769801244291,-164.62391136,0.00016373,2]
[404086203,1769801244312,-558.9380785,0.00016373,2]
[404086204,1769801244334,-500.0,0.00016373,2]
[404086205,1769801244358,-163.00594696,0.00016373,2]
[404086206,1769801244382,-500.0,0.00016373,2]
[404086207,1769801244405,-500.0,0.00016373,2]
[404086208,1769801244436,-500.0,0.00016373,2]
[404086209,1769801244460,-568.87365999,0.00016373,2]
[404086210,1769801244483,-500.0,0.00016373,2]
[404086211,1769801244506,-500.0,0.00016373,2]
[404086212,1769801244531,-160.21943413,0.00016373,2]
[404086213,1769801244555,-500.0,0.00016373,2]
[404086214,1769801244941,-500.0,0.00016373,2]
[404086215,1769801244968,-500.0,0.00016373,2]
[404086216,1769801244994,-500.0,0.00016373,2]
[404086217,1769801245022,-217.57575976,0.00016373,2]
[404086218,1769801245053,-733.95,0.00016373,2]
[404086219,1769801245079,-9999.99,0.00016412,2]
[404086220,1769801245108,-166.66,0.00016412,2]
[404086221,1769801245136,-526.65,0.00016491,2]
[404086222,1769801245161,-347.42,0.00016576,2]
[404086223,1769801245187,-733.95,0.00016647,2]
[404086224,1769801245213,-1588.71,0.0001667,2]
[404086225,1769801245240,-465.06,0.00016696,2]
[404086226,1769801245267,-166.66,0.00016744,2]
[404086227,1769801245295,-10619.7713,0.0001682,2]
[404086228,1769801245324,-1000.0,0.0001682,2]
[404086229,1769801245352,-199.28,0.00016824,2]
[404086230,1769801245380,-218.94,0.00016824,2]
[404086231,1769801245406,-14046.3568897,0.00016911,2]
[404086232,1769801245435,-1000.0,0.00016921,2]
[404086233,1769801245462,-500.0,0.00016921,2]
[404086234,1769801245489,-770.71912409,0.00016921,2]
[404086235,1769801245515,-1000.0,0.00016921,2]
[404086236,1769801245541,-1000.0,0.00016921,2]
[404086237,1769801245568,-500.0,0.00016921,2]
[404086238,1769801245594,-497.73333874,0.00016921,2]
[404086239,1769801245620,-1000.0,0.00016921,2]
[404086240,1769801245647,-1000.0,0.00016921,2]
[404086241,1769801245675,-500.0,0.00016921,2]
[404086242,1769801245701,-1000.0,0.00016921,2]
[404086243,1769801245730,-1000.0,0.00016921,2]
[404086244,1769801245760,-1000.0,0.00016921,2]
[404086245,1769801245789,-1000.0,0.00016921,2]
[404086246,1769801245823,-733.95,0.00016921,2]
[404086247,1769801245852,-250.0,0.00017,2]
[404086248,1769801245882,-915.8,0.00017015,2]
[404086249,1769801245910,-166.66,0.00017076,2]
[404086250,1769801245939,-578.20924308,0.00017084,2]
[404086251,1769801245972,-209.40437684,0.00017084,2]
[404086252,1769801246005,-2000.0,0.00017084,2]
[404086253,1769801246036,-2000.0,0.00017084,2]
[404086254,1769801246065,-2000.0,0.00017084,2]
[404086255,1769801246093,-2000.0,0.00017084,2]
[404086256,1769801246125,-1130.5264276,0.00017084,2]
[404086257,1769801246158,-854.2589148,0.00017084,2]
[404086258,1769801246187,-322.6107,0.00017084,2]
[404086259,1769801246216,-359.82038904,0.00017084,2]
[404086260,1769801246245,-1000.0,0.00017084,2]
[404086261,1769801246273,-1000.0,0.00017084,2]
[404086262,1769801246306,-1000.0,0.00017084,2]
[404086263,1769801246339,-1000.0,0.00017084,2]
[404086264,1769801246379,-1045.10912385,0.00017084,2]
[404086265,1769801246410,-257.17431342,0.00017084,2]
[404086266,1769801246444,-250.0,0.00017084,2]
[404086267,1769801246477,-2500.0,0.00017084,2]
[404086268,1769801246514,-217.15233878,0.00017139,2]
[404086269,1769801246549,-225.18697532,0.00017194,2]
[404086270,1769801246578,-733.95,0.00017195,2]
[404086271,1769801246605,-1679.0,0.00017204,2]
[404086272,1769801246635,-5888.0,0.00017222,2]
[404086273,1769801246662,-382.50559695,0.00017239,2]
[404086274,1769801246695,-233.51889341,0.00017249,2]
[404086275,1769801246729,-242.15909246,0.00017304,2]
[404086276,1769801246758,-526.65,0.00017315,2]
[404086277,1769801246789,-300.0,0.00017324,2]
[404086278,1769801246819,-250.0,0.00017324,2]
[404086279,1769801246851,-195.0,0.00017324,2]
[404086280,1769801246881,-500.0,0.00017324,2]
[404086281,1769801246910,-1852.42,0.00017326,2]
[404086282,1769801246947,-251.11897888,0.00017359,2]
[404086283,1769801246977,-1247.0,0.00017379,2]
[404086284,1769801247007,-166.66,0.00017407,2]
[404086285,1769801247038,-173.0,0.00017413,2]
[404086286,1769801247073,-260.4103811,0.00017414,2]
[404086287,1769801247103,-780.0,0.00017448,2]
[404086288,1769801247135,-733.95,0.00017468,2]
[404086289,1769801247168,-500.0,0.00017468,2]
[404086290,1769801247194,-1500.0,0.00017468,2]
[404086291,1769801247225,-1500.0,0.00017468,2]
[404086292,1769801247260,-1500.0,0.00017468,2]
[404086293,1769801247294,-327.74562474,0.00017468,2]
[404086294,1769801247322,-547.44038762,0.00017468,2]
[404086295,1769801247351,-500.81154381,0.00017468,2]
[404086296,1769801247384,-270.0455652,0.00017469,2]
[404086297,1769801247416,-676.0,0.00017485,2]
[404086298,1769801247447,-12205.37473376,0.000175,3]